fUST/lending_fUST_20250225
["ID","MTS","AMOUNT","RATE_DAILY","PERIOD"]
[354425662,1740485435924,-507.26871138,0.00059177,120]
[354425663,1740485435934,-500.0,0.00059177,120]
[354425664,1740485435944,-501.02533484,0.00059177,120]
[354425665,1740485435954,-504.09725054,0.00059177,120]
[354425666,1740485435963,-500.0,0.00059177,120]
[354425667,1740485435973,-500.0,0.00059177,120]
[354425668,1740485435982,-965.45,0.00059177,120]
[354425669,1740485435992,-500.0,0.00059177,120]
[354425670,1740485436001,-580.13981906,0.00059177,120]
[354425671,1740485436011,-6125.0,0.00059178,120]
[354425672,1740485436021,-205.65,0.00059178,30]
[354425673,1740485436030,-500.0,0.00059451,120]
[354425674,1740485436040,-500.0,0.00059451,120]
[354425675,1740485436049,-458.0,0.00059451,120]
[354425676,1740485436059,-7000.0,0.00059452,120]
[354425677,1740485436069,-500.0,0.00059725,31]
[354425678,1740485436079,-155.16567476,0.00059725,31]
[354425679,1740485436088,-523.17,0.00059725,120]
[354425680,1740485436098,-7875.0,0.00059726,120]
[354425681,1740485436110,-5403.08373945,0.00059999,120]
[354425682,1740485436120,-1198.6242751,0.0006,60]
[354425683,1740485436130,-500.0,0.0006022,120]
[354425684,1740485436140,-1086.37,0.0006022,120]
[354425685,1740485436150,-620.96,0.0006022,120]
[354425686,1740485436159,-956.7,0.0006022,120]
[354425687,1740485436168,-569.71462104,0.0006022,120]
[354425688,1740485436178,-799.78,0.0006022,120]
[354425689,1740485436188,-1100.17,0.0006022,120]
[354425690,1740485436197,-500.0,0.0006022,120]
[354425691,1740485436207,-500.0,0.0006022,21]
[354425692,1740485436216,-2352.71,0.0006022,120]
[354425693,1740485436226,-300.0,0.00060248,15]
[354425694,1740485436235,-500.0,0.00060272,120]
[354425695,1740485436244,-500.0,0.00060272,2]
[354425696,1740485436253,-500.0,0.00060272,120]
[354425697,1740485436263,-1839.27,0.00060273,120]
[354425698,1740485436272,-2605.66,0.00060273,120]
[354425699,1740485436282,-500.0,0.00060273,120]
[354425700,1740485436291,-1329.66,0.00060273,120]
[354425701,1740485436300,-500.0,0.00060273,120]
[354425702,1740485436310,-14313.73,0.00060273,120]
[354425703,1740485436319,-1386.02,0.00060273,120]
[354425704,1740485436329,-500.0,0.00060273,120]
[354425705,1740485436339,-588.0,0.00060273,120]
[354425706,1740485436348,-500.0,0.00060273,120]
[354425707,1740485436360,-831.48,0.00060273,120]
[354425708,1740485436369,-500.0,0.00060273,120]
[354425709,1740485436379,-500.0,0.00060273,120]
[354425710,1740485436389,-959.53,0.00060273,120]
[354425711,1740485436398,-500.0,0.00060273,120]
[354425712,1740485436407,-500.0,0.00060273,30]
[354425713,1740485436417,-857.59,0.00060273,120]
[354425714,1740485436426,-2706.68,0.00060273,3]
[354425715,1740485436436,-652.3,0.00060273,120]
[354425716,1740485436445,-5286.16,0.00060273,120]
[354425717,1740485436454,-843.41,0.00060273,120]
[354425718,1740485436464,-500.0,0.00060273,120]
[354425719,1740485436473,-500.0,0.00060273,120]
[354425720,1740485436483,-500.0,0.00060273,120]
[354425721,1740485436493,-1577.56,0.00060273,120]
[354425722,1740485436502,-718.43,0.00060273,120]
[354425723,1740485436512,-598.47,0.00060273,120]
[354425724,1740485436521,-500.0,0.00060273,120]
[354425725,1740485436531,-500.0,0.00060273,120]
[354425726,1740485436540,-500.0,0.00060273,120]
[354425727,1740485436549,-674.39,0.00060273,120]
[354425728,1740485436559,-596.18,0.00060273,120]
[354425729,1740485436568,-500.0,0.00060273,120]
[354425730,1740485436578,-500.0,0.00060273,120]
[354425731,1740485436588,-919.46,0.00060273,120]
[354425732,1740485436597,-557.0,0.00060432,120]
[354425733,1740485436606,-160.0,0.00060546,90]
[354425734,1740485436617,-523.17,0.00060546,120]
[354425735,1740485436626,-500.0,0.00060547,120]
[354425736,1740485436636,-500.0,0.00060547,120]
[354425737,1740485436646,-500.0,0.00060547,120]
[354425738,1740485436656,-1014.42,0.00060547,120]
[354425739,1740485436666,-500.0,0.00060547,30]
[354425740,1740485436678,-500.0,0.00060547,120]
[354425741,1740485436687,-500.0,0.00060547,120]
[354425742,1740485436697,-500.0,0.00060547,120]
[354425743,1740485436706,-500.0,0.00060547,120]
[354425744,1740485436716,-500.0,0.00060547,120]
[354425745,1740485436725,-500.0,0.00060547,120]
[354425746,1740485436735,-500.0,0.00060547,120]
[354425747,1740485436746,-500.0,0.00060547,120]
[354425748,1740485436756,-500.0,0.00060547,120]
[354425749,1740485436765,-500.0,0.00060547,120]
[354425750,1740485436775,-500.0,0.00060547,120]
[354425751,1740485436784,-500.0,0.00060547,120]
[354425752,1740485436793,-500.0,0.00060547,120]
[354425753,1740485436803,-250.0,0.00060547,120]
[354425754,1740485436812,-503.62560449,0.00060547,120]
[354425755,1740485436821,-281.171671,0.00060547,120]
[354425756,1740485436830,-500.0,0.00060547,120]
[354425757,1740485436840,-500.0,0.00060547,120]
[354425758,1740485436850,-500.0,0.00060547,120]
[354425759,1740485436862,-500.0,0.00060547,120]
[354425760,1740485436871,-500.0,0.00060547,120]
[354425761,1740485436881,-500.0,0.00060547,120]
[354425762,1740485436891,-500.0,0.00060547,120]
[354425763,1740485436900,-504.08366107,0.00060547,120]
[354425764,1740485436910,-36926.2,0.00060547,6]
[354425765,1740485436920,-500.0,0.00060547,120]
[354425766,1740485436930,-500.0,0.00060547,120]
[354425767,1740485436939,-500.0,0.00060547,120]
[354425768,1740485436949,-1053.35,0.00060547,120]
[354425769,1740485436958,-500.0,0.00060547,120]
[354425770,1740485436968,-500.0,0.00060547,120]
[354425771,1740485436978,-500.0,0.00060547,120]
[354425772,1740485436987,-500.0,0.00060547,120]
[354425773,1740485436997,-578.89,0.00060547,120]
[354425774,1740485437006,-500.0,0.00060547,120]
[354425775,1740485437016,-500.0,0.00060547,120]
[354425776,1740485437025,-500.0,0.00060547,120]
[354425777,1740485437035,-500.0,0.00060547,120]
[354425778,1740485437044,-500.0,0.00060547,120]
[354425779,1740485437054,-500.0,0.00060547,120]
[354425780,1740485437064,-500.0,0.00060547,120]
[354425781,1740485437074,-1999.03,0.00060547,120]
[354425782,1740485437084,-1172.97,0.00060547,120]
[354425783,1740485437093,-503.13410827,0.00060547,120]
[354425784,1740485437106,-500.0,0.00060547,120]
[354425785,1740485437116,-500.0,0.00060547,120]
[354425786,1740485437125,-500.0,0.00060547,120]
[354425787,1740485437135,-500.0,0.00060547,120]
[354425788,1740485437144,-548.26,0.00060547,120]
[354425789,1740485437153,-500.0,0.00060547,120]
[354425790,1740485437165,-500.0,0.00060547,120]
[354425791,1740485437179,-1939.25,0.00060547,120]
[354425792,1740485437264,-500.0,0.00060547,120]
[354425793,1740485437275,-500.0,0.00060547,120]
[354425794,1740485437286,-500.0,0.00060547,120]
[354425795,1740485437295,-482.72395975,0.00060547,120]
[354425796,1740485437305,-500.0,0.00060547,120]
[354425797,1740485437315,-500.0,0.00060547,120]
[354425798,1740485437326,-500.0,0.00060547,120]
[354425799,1740485437336,-567.39939383,0.00060547,120]
[354425800,1740485437346,-500.0,0.00060547,120]
[354425801,1740485437358,-506.31753928,0.00060547,120]
[354425802,1740485437368,-500.0,0.00060547,120]
[354425803,1740485437378,-500.0,0.00060547,120]
[354425804,1740485437388,-6398.6,0.00060547,120]
[354425805,1740485437399,-500.0,0.00060547,30]
[354425806,1740485437409,-500.0,0.00060547,120]
[354425807,1740485437420,-505.40613968,0.00060547,120]
[354425808,1740485437431,-536.99,0.00060547,120]
[354425809,1740485437441,-500.0,0.00060547,120]
[354425810,1740485437452,-504.64494813,0.00060547,120]
[354425811,1740485437461,-654.9,0.00060547,120]
[354425812,1740485437471,-500.0,0.00060547,120]
[354425813,1740485437480,-500.0,0.00060547,120]
[354425814,1740485437490,-177373.63,0.00060547,7]
[354425815,1740485437499,-528.37286133,0.00060547,120]
[354425816,1740485437508,-1429.57,0.00060547,120]
[354425817,1740485437518,-500.0,0.00060547,120]
[354425818,1740485437527,-500.0,0.00060547,120]
[354425819,1740485437537,-609.5,0.00060547,120]
[354425820,1740485437546,-500.0,0.00060547,120]
[354425821,1740485437555,-303.51921138,0.00060547,120]
[354425822,1740485437564,-500.0,0.00060547,120]
[354425823,1740485437574,-500.0,0.00060547,120]
[354425824,1740485437583,-500.0,0.00060547,120]
[354425825,1740485437593,-3033.53,0.00060547,120]
[354425826,1740485437603,-500.0,0.00060547,120]
[354425827,1740485437613,-500.0,0.00060547,120]
[354425828,1740485437623,-500.0,0.00060547,120]
[354425829,1740485437633,-500.0,0.00060547,120]
[354425830,1740485437642,-523.36,0.00060547,120]
[354425831,1740485437651,-500.0,0.00060547,120]
[354425832,1740485437665,-500.0,0.00060547,120]
[354425833,1740485437675,-500.0,0.00060547,120]
[354425834,1740485437684,-500.0,0.00060547,120]
[354425835,1740485437694,-510.31,0.00060547,120]
[354425836,1740485437705,-500.0,0.00060547,120]
[354425837,1740485437714,-500.0,0.00060547,120]
[354425838,1740485437724,-500.0,0.00060547,120]
[354425839,1740485437737,-503.93226295,0.00060547,120]
[354425840,1740485437746,-884.39,0.00060547,120]
[354425841,1740485437755,-500.0,0.00060547,120]
[354425842,1740485437765,-500.0,0.00060547,120]
[354425843,1740485437775,-1351.64,0.00060547,120]
[354425844,1740485437784,-500.0,0.00060547,120]
[354425845,1740485437793,-503.301791,0.00060547,120]
[354425846,1740485437804,-503.77978048,0.00060547,120]
[354425847,1740485437813,-494.65173746,0.00060547,120]
[354425848,1740485437822,-500.0,0.00060547,120]
[354425849,1740485437831,-1374.68,0.00060547,120]
[354425850,1740485437841,-500.0,0.00060547,120]
[354425851,1740485437850,-500.0,0.00060547,120]
[354425852,1740485437862,-500.0,0.00060547,120]
[354425853,1740485437872,-503.06915587,0.00060547,120]
[354425854,1740485437882,-1393.49,0.00060547,120]
[354425855,1740485437892,-500.0,0.00060547,120]
[354425856,1740485437901,-501.20234767,0.00060547,120]
[354425857,1740485437911,-502.03060679,0.00060547,7]
[354425858,1740485437920,-602.23,0.00060547,120]
[354425859,1740485437930,-4727.75,0.00060547,120]
[354425860,1740485437939,-500.0,0.00060547,120]
[354425861,1740485437949,-239.28404582,0.00060547,120]
[354425862,1740485437959,-36054.27,0.00060547,120]
[354425863,1740485437969,-514.94437666,0.00060547,120]
[354425864,1740485437979,-500.0,0.00060547,120]
[354425865,1740485437989,-509.96860125,0.00060547,120]
[354425866,1740485437999,-528.01,0.00060547,120]
[354425867,1740485438009,-309.89783175,0.00060547,120]
[354425868,1740485438018,-500.0,0.00060547,120]
[354425869,1740485438028,-500.0,0.00060547,120]
[354425870,1740485438038,-591.84870656,0.00060547,120]
[354425876,1740485438194,-373.60129344,0.00060547,120]
[354425877,1740485438204,-500.0,0.00061143,15]
[354425879,1740485438214,-500.0,0.00061143,15]
[354425881,1740485438224,-501.27417571,0.00061143,5]
[354425883,1740485438235,-500.0,0.00061143,2]
[354425885,1740485438246,-523.17,0.00061274,120]
[354425887,1740485438255,-557.0,0.00061285,120]
[354425889,1740485438264,-268.0,0.00061356,2]
[354425897,1740485438362,-500.0,0.0006159,120]
[354425899,1740485438372,-1086.37,0.0006159,120]
[354425901,1740485438381,-620.96,0.0006159,120]
[354425903,1740485438391,-956.7,0.0006159,120]
[354425905,1740485438402,-799.78,0.0006159,120]
[354425907,1740485438412,-1100.17,0.0006159,120]
[354425909,1740485438421,-500.0,0.0006159,120]
[354425910,1740485438435,-511.87301183,0.0006159,21]
[354425912,1740485438444,-2352.71,0.0006159,120]
[354425914,1740485438454,-500.0,0.00061642,120]
[354425916,1740485438463,-524.62682534,0.00061642,2]
[354425918,1740485438472,-1839.27,0.00061643,120]
[354425920,1740485438481,-2605.66,0.00061643,120]
[354425921,1740485438490,-500.0,0.00061643,120]
[354425923,1740485438500,-1329.66,0.00061643,120]
[354425925,1740485438509,-14313.73,0.00061643,120]
[354425927,1740485438518,-1386.02,0.00061643,120]
[354425929,1740485438528,-500.0,0.00061643,120]
[354425930,1740485438537,-588.0,0.00061643,120]
[354425932,1740485438547,-328.92,0.00061643,120]
[354425934,1740485438556,-831.48,0.00061643,120]
[354425936,1740485438566,-210.97818841,0.00061643,120]
[354425938,1740485438575,-554.75320275,0.00061643,120]
[354425940,1740485438584,-959.53,0.00061643,120]
[354425942,1740485438593,-500.0,0.00061643,120]
[354425944,1740485438604,-500.0,0.00061643,30]
[354425945,1740485438614,-857.59,0.00061643,120]
[354425947,1740485438623,-2706.68,0.00061643,3]
[354425949,1740485438632,-652.3,0.00061643,120]
[354425951,1740485438642,-5286.16,0.00061643,120]
[354425953,1740485438651,-843.41,0.00061643,120]
[354425954,1740485438661,-500.0,0.00061643,120]
[354425956,1740485438673,-500.0,0.00061643,120]
[354425958,1740485438683,-500.0,0.00061643,120]
[354425960,1740485438693,-1577.56,0.00061643,120]
[354425962,1740485438702,-718.43,0.00061643,120]
[354425964,1740485438713,-598.47,0.00061643,120]
[354425966,1740485438723,-500.0,0.00061643,120]
[354425969,1740485438733,-500.0,0.00061643,120]
[354425971,1740485438742,-500.0,0.00061643,120]
[354425972,1740485438752,-674.39,0.00061643,120]
[354425974,1740485438763,-596.18,0.00061643,120]
[354425976,1740485438773,-500.0,0.00061643,120]
[354425978,1740485438783,-500.0,0.00061643,120]
[354425980,1740485438793,-919.46,0.00061643,120]
[354425982,1740485438802,-465.0373146,0.00061793,30]
[354425984,1740485438812,-1226.52453723,0.00061817,30]
[354425986,1740485438822,-160.0,0.00061916,90]
[354425988,1740485438831,-523.17,0.00061916,120]
[354425990,1740485438840,-500.0,0.00061917,120]
[354425992,1740485438851,-500.0,0.00061917,120]
[354425994,1740485438864,-500.0,0.00061917,120]
[354425996,1740485438873,-1014.42,0.00061917,120]
[354425998,1740485438881,-500.0,0.00061917,30]
[354425999,1740485438891,-500.0,0.00061917,120]
[354426001,1740485438901,-500.0,0.00061917,120]
[354426003,1740485438911,-500.0,0.00061917,120]
[354426005,1740485438920,-500.0,0.00061917,120]
[354426007,1740485438930,-500.0,0.00061917,120]
[354426009,1740485438939,-500.0,0.00061917,120]
[354426011,1740485438948,-500.0,0.00061917,120]
[354426012,1740485438957,-500.0,0.00061917,120]
[354426014,1740485438967,-500.0,0.00061917,120]
[354426016,1740485438977,-514.24415842,0.00061917,120]
[354426018,1740485438986,-500.0,0.00061917,120]
[354426019,1740485438995,-500.0,0.00061917,120]
[354426021,1740485439005,-250.0,0.00061917,120]
[354426023,1740485439015,-500.0,0.00061917,120]
[354426024,1740485439024,-500.0,0.00061917,120]
[354426026,1740485439033,-500.0,0.00061917,120]
[354426028,1740485439043,-500.0,0.00061917,120]
[354426030,1740485439052,-512.93022185,0.00061917,120]
[354426031,1740485439062,-500.0,0.00061917,120]
[354426033,1740485439071,-36926.2,0.00061917,6]
[354426035,1740485439080,-500.0,0.00061917,120]
[354426037,1740485439089,-500.0,0.00061917,120]
[354426039,1740485439099,-500.0,0.00061917,120]
[354426041,1740485439111,-1053.35,0.00061917,120]
[354426042,1740485439120,-500.0,0.00061917,120]
[354426044,1740485439129,-500.0,0.00061917,120]
[354426046,1740485439139,-500.0,0.00061917,120]
[354426048,1740485439148,-500.0,0.00061917,120]
[354426050,1740485439157,-578.89,0.00061917,120]
[354426051,1740485439166,-500.0,0.00061917,120]
[354426052,1740485439175,-507.52382425,0.00061917,120]
[354426053,1740485439185,-500.0,0.00061917,120]
[354426054,1740485439195,-500.0,0.00061917,120]
[354426055,1740485439205,-500.0,0.00061917,120]
[354426056,1740485439214,-1999.03,0.00061917,120]
[354426057,1740485439223,-1172.97,0.00061917,120]
[354426058,1740485439233,-500.0,0.00061917,120]
[354426059,1740485439243,-500.0,0.00061917,120]
[354426060,1740485439253,-500.0,0.00061917,120]
[354426061,1740485439263,-500.0,0.00061917,120]
[354426062,1740485439272,-548.26,0.00061917,120]
[354426063,1740485439282,-500.0,0.00061917,120]
[354426064,1740485439291,-500.0,0.00061917,120]
[354426066,1740485439301,-1939.25,0.00061917,120]
[354426068,1740485439310,-500.0,0.00061917,120]
[354426070,1740485439319,-500.0,0.00061917,120]
[354426072,1740485439329,-316.26211098,0.00061917,120]
[354426074,1740485439338,-500.0,0.00061917,120]
[354426075,1740485439347,-500.0,0.00061917,120]
[354426077,1740485439360,-500.0,0.00061917,120]
[354426079,1740485439370,-513.21262946,0.00061917,120]
[354426081,1740485439379,-215.39961076,0.00061917,120]
[354426082,1740485439389,-6398.6,0.00061917,120]
[354426084,1740485439400,-500.0,0.00061917,30]
[354426086,1740485439410,-500.0,0.00061917,120]
[354426087,1740485439420,-536.99,0.00061917,120]
[354426089,1740485439430,-500.0,0.00061917,120]
[354426090,1740485439439,-654.9,0.00061917,120]
[354426093,1740485439518,-500.0,0.00061917,120]
[354426094,1740485439528,-500.0,0.00061917,120]
[354426095,1740485439538,-177373.63,0.00061917,7]
[354426096,1740485439548,-1429.57,0.00061917,120]
[354426097,1740485439558,-500.0,0.00061917,120]
[354426098,1740485439567,-500.0,0.00061917,120]
[354426099,1740485439577,-609.5,0.00061917,120]
[354426100,1740485439586,-500.0,0.00061917,120]
[354426101,1740485439596,-500.0,0.00061917,120]
[354426102,1740485439608,-503.1240451,0.00061917,120]
[354426103,1740485439617,-312.74290137,0.00061917,120]
[354426104,1740485439627,-3033.53,0.00061917,120]
[354426105,1740485439636,-500.0,0.00061917,120]
[354426106,1740485439646,-212.60294972,0.00061917,120]
[354426107,1740485439659,-500.0,0.00061917,120]
[354426108,1740485439670,-523.36,0.00061917,120]
[354426109,1740485439680,-500.0,0.00061917,120]
[354426110,1740485439690,-500.0,0.00061917,120]
[354426111,1740485439699,-500.0,0.00061917,120]
[354426112,1740485439709,-500.0,0.00061917,120]
[354426113,1740485439718,-510.31,0.00061917,120]
[354426114,1740485439728,-500.0,0.00061917,120]
[354426115,1740485439738,-500.0,0.00061917,120]
[354426116,1740485439748,-500.0,0.00061917,120]
[354426117,1740485439758,-884.39,0.00061917,120]
[354426118,1740485439767,-500.0,0.00061917,120]
[354426119,1740485439776,-506.58206265,0.00061917,120]
[354426120,1740485439786,-1351.64,0.00061917,120]
[354426121,1740485439795,-500.0,0.00061917,120]
[354426122,1740485439805,-500.0,0.00061917,120]
[354426123,1740485439814,-1374.68,0.00061917,120]
[354426124,1740485439824,-500.0,0.00061917,120]
[354426125,1740485439834,-500.0,0.00061917,120]
[354426126,1740485439843,-500.0,0.00061917,120]
[354426127,1740485439852,-1393.49,0.00061917,120]
[354426128,1740485439864,-500.0,0.00061917,120]
[354426129,1740485439874,-602.23,0.00061917,120]
[354426130,1740485439883,-4727.75,0.00061917,120]
[354426131,1740485439892,-506.28266742,0.00061917,120]
[354426132,1740485439902,-36054.27,0.00061917,120]
[354426133,1740485439911,-528.01,0.00061917,120]
[354426134,1740485439920,-596.24763349,0.00061917,120]
[354426135,1740485439929,-500.0,0.00061917,120]
[354426136,1740485439940,-965.45,0.00061917,120]
[354426138,1740485439950,-225.98754624,0.00062625,2]
[354426139,1740485439959,-500.23637955,0.00062635,15]
[354426140,1740485439968,-500.0,0.00062635,15]
[354426141,1740485439978,-500.0,0.00062635,15]
[354426142,1740485439987,-500.0,0.00062635,15]
[354426143,1740485439996,-500.0,0.00062635,15]
[354426144,1740485440006,-500.0,0.00062635,15]
[354426145,1740485440016,-500.0,0.00062635,15]
[354426146,1740485440026,-500.02864384,0.00062635,15]
[354426147,1740485440036,-557.0,0.0006267,120]
[354426148,1740485440045,-500.0,0.0006296,120]
[354426149,1740485440055,-1086.37,0.0006296,120]
[354426150,1740485440066,-620.96,0.0006296,120]
[354426151,1740485440075,-956.7,0.0006296,120]
[354426152,1740485440084,-799.78,0.0006296,120]
[354426153,1740485440093,-1100.17,0.0006296,120]
[354426155,1740485440105,-500.0,0.0006296,120]
[354426156,1740485440114,-2352.71,0.0006296,120]
[354426157,1740485440124,-491.12207272,0.00063012,120]
[354426158,1740485440133,-1839.27,0.00063013,120]
[354426159,1740485440143,-2605.66,0.00063013,120]
[354426160,1740485440154,-500.0,0.00063013,120]
[354426161,1740485440163,-1329.66,0.00063013,120]
[354426162,1740485440177,-14313.73,0.00063013,120]
[354426163,1740485440186,-1386.02,0.00063013,120]
[354426164,1740485440196,-500.0,0.00063013,120]
[354426165,1740485440206,-588.0,0.00063013,120]
[354426167,1740485440215,-831.48,0.00063013,120]
[354426168,1740485440225,-959.53,0.00063013,120]
[354426169,1740485440234,-500.0,0.00063013,120]
[354426170,1740485440244,-500.0,0.00063013,30]
[354426171,1740485440253,-857.59,0.00063013,120]
[354426172,1740485440263,-2706.68,0.00063013,3]
[354426173,1740485440272,-652.3,0.00063013,120]
[354426174,1740485440281,-5286.16,0.00063013,120]
[354426175,1740485440290,-843.41,0.00063013,120]
[354426176,1740485440301,-500.0,0.00063013,120]
[354426177,1740485440311,-500.0,0.00063013,120]
[354426179,1740485440320,-500.0,0.00063013,120]
[354426181,1740485440330,-1577.56,0.00063013,120]
[354426183,1740485440339,-718.43,0.00063013,120]
[354426185,1740485440349,-598.47,0.00063013,120]
[354426187,1740485440360,-500.0,0.00063013,120]
[354426188,1740485440370,-500.0,0.00063013,120]
[354426189,1740485440379,-500.0,0.00063013,120]
[354426190,1740485440389,-674.39,0.00063013,120]
[354426191,1740485440399,-596.18,0.00063013,120]
[354426192,1740485440409,-500.0,0.00063013,120]
[354426193,1740485440418,-500.0,0.00063013,120]
[354426194,1740485440428,-919.46,0.00063013,120]
[354426195,1740485440438,-555.7431314,0.00063014,120]
[354426196,1740485440447,-555.7431314,0.00063014,120]
[354426197,1740485440457,-555.7431314,0.00063014,120]
[354426198,1740485440467,-555.7431314,0.00063014,120]
[354426200,1740485440476,-555.7431314,0.00063014,120]
[354426201,1740485440487,-555.7431314,0.00063014,120]
[354426202,1740485440496,-555.7431314,0.00063014,120]
[354426203,1740485440506,-555.7431314,0.00063014,120]
[354426204,1740485440515,-555.7431314,0.00063014,120]
[354426205,1740485440527,-555.7431314,0.00063014,120]
[354426206,1740485440606,-555.7431314,0.00063014,120]
[354426207,1740485440618,-555.7431314,0.00063014,120]
[354426208,1740485440629,-555.7431314,0.00063014,120]
[354426209,1740485440640,-555.7431314,0.00063014,120]
[354426210,1740485440650,-555.7431314,0.00063014,120]
[354426211,1740485440664,-555.7431314,0.00063014,120]
[354426212,1740485440674,-555.7431314,0.00063014,120]
[354426214,1740485440684,-555.7431314,0.00063014,120]
[354426215,1740485440693,-555.7431314,0.00063014,120]
[354426216,1740485440704,-555.74,0.00063014,120]
[354426217,1740485440714,-1296.73397327,0.00063014,120]
[354426218,1740485440723,-1296.73397327,0.00063014,120]
[354426219,1740485440732,-1296.73397327,0.00063014,120]
[354426221,1740485440742,-1296.73397327,0.00063014,120]
[354426222,1740485440752,-1296.73397327,0.00063014,120]
[354426223,1740485440762,-1296.73397327,0.00063014,120]
[354426224,1740485440773,-1296.73397327,0.00063014,120]
[354426225,1740485440782,-1296.73397327,0.00063014,120]
[354426226,1740485440792,-1296.73397327,0.00063014,120]
[354426227,1740485440802,-1296.73397327,0.00063014,120]
[354426228,1740485440811,-1296.73397327,0.00063014,120]
[354426229,1740485440821,-1296.73397327,0.00063014,120]
[354426230,1740485440830,-1296.73397327,0.00063014,120]
[354426231,1740485440839,-1296.73397327,0.00063014,120]
[354426232,1740485440849,-1296.73397327,0.00063014,120]
[354426233,1740485440861,-1296.73397327,0.00063014,120]
[354426234,1740485440870,-1296.73397327,0.00063014,120]
[354426235,1740485440880,-1296.73397327,0.00063014,120]
[354426236,1740485440890,-1296.73397327,0.00063014,120]
[354426237,1740485440899,-202.0,0.00063014,120]
[354426238,1740485440909,-157.11448982,0.00063014,120]
[354426239,1740485440918,-157.11448982,0.00063014,120]
[354426240,1740485440928,-161.23,0.00063014,120]
[354426241,1740485440937,-188.10604516,0.00063014,120]
[354426242,1740485440946,-4247.92675858,0.00063187,2]
[354426243,1740485440956,-1296.73,0.00063187,120]
[354426244,1740485440965,-157.11,0.00063187,120]
[354426245,1740485440975,-188.1,0.00063187,120]
[354426246,1740485440985,-523.17,0.00063286,120]
[354426247,1740485440994,-500.0,0.00063287,120]
[354426248,1740485441003,-500.0,0.00063287,120]
[354426249,1740485441013,-500.0,0.00063287,120]
[354426250,1740485441022,-1014.42,0.00063287,120]
[354426251,1740485441031,-310.83635084,0.00063287,30]
[354426252,1740485441040,-500.0,0.00063287,120]
[354426253,1740485441050,-445.68690983,0.00063287,120]
[354426254,1740485441059,-500.0,0.00063287,120]
[354426255,1740485441068,-500.0,0.00063287,120]
[354426256,1740485441078,-500.0,0.00063287,120]
[354426257,1740485441087,-500.0,0.00063287,120]
[354426258,1740485441097,-504.2180288,0.00063287,120]
[354426259,1740485441109,-500.0,0.00063287,120]
[354426260,1740485441119,-500.0,0.00063287,120]
[354426261,1740485441129,-500.0,0.00063287,120]
[354426262,1740485441138,-500.0,0.00063287,120]
[354426263,1740485441147,-250.0,0.00063287,120]
[354426264,1740485441157,-500.0,0.00063287,120]
[354426265,1740485441166,-523.17710472,0.00063287,120]
[354426266,1740485441176,-500.0,0.00063287,120]
[354426267,1740485441185,-500.0,0.00063287,120]
[354426268,1740485441195,-500.0,0.00063287,120]
[354426269,1740485441204,-500.0,0.00063287,120]
[354426270,1740485441213,-36926.2,0.00063287,6]
[354426271,1740485441223,-500.0,0.00063287,120]
[354426272,1740485441232,-500.0,0.00063287,120]
[354426273,1740485441242,-1053.35,0.00063287,120]
[354426274,1740485441252,-500.0,0.00063287,120]